[Event "Titled Tuesday Blitz January 10 Early 2023"]
[White "Womacka, Mathias"]
[Black "Gressmann, Moritz"]
[WhiteFideId "4611390"]
[BlackFideId "24695084"]
[WhiteElo "2396"]
[BlackElo "2129"]
[Result "0-1"]
[Round "11"]
[TimeControl "180+2"]
[Date "2023.01.10"]
[WhiteClock "0:00:01"]
[BlackClock "0:00:28"]

1. e4 {[%clk 0:03:00]}  d6 {[%clk 0:02:59]} 2. d4 {[%clk 0:03:00]}  Nf6 {[%clk 0:02:59]} 3. Nc3 {[%clk 0:02:59]}  e5 {[%clk 0:02:58]} 4. Nf3 {[%clk 0:02:58]}  exd4 {[%clk 0:02:56]} 5. Nxd4 {[%clk 0:02:57]}  Nc6 {[%clk 0:02:56]} 6. Bb5 {[%clk 0:02:49]}  Bd7 {[%clk 0:02:56]} 7. Bxc6 {[%clk 0:02:47]}  bxc6 {[%clk 0:02:56]} 8. O-O {[%clk 0:02:46]}  Be7 {[%clk 0:02:57]} 9. Qf3 {[%clk 0:02:46]}  O-O {[%clk 0:02:53]} 10. h3 {[%clk 0:02:39]}  c5 {[%clk 0:02:51]} 11. Nf5 {[%clk 0:02:38]}  Bxf5 {[%clk 0:02:49]} 12. Qxf5 {[%clk 0:02:39]}  Qd7 {[%clk 0:02:48]} 13. Qxd7 {[%clk 0:02:26]}  Nxd7 {[%clk 0:02:48]} 14. Nd5 {[%clk 0:02:27]}  Bd8 {[%clk 0:02:47]} 15. Bf4 {[%clk 0:02:27]}  Nf6 {[%clk 0:02:44]} 16. Rfe1 {[%clk 0:02:16]}  Re8 {[%clk 0:02:33]} 17. f3 {[%clk 0:02:10]}  Nxd5 {[%clk 0:02:22]} 18. exd5 {[%clk 0:02:11]}  Bf6 {[%clk 0:02:22]} 19. c3 {[%clk 0:02:05]}  Kf8 {[%clk 0:02:18]} 20. Kf2 {[%clk 0:01:59]}  Rab8 {[%clk 0:02:17]} 21. Rxe8+ {[%clk 0:01:55]}  Kxe8 {[%clk 0:02:16]} 22. Re1+ {[%clk 0:01:55]}  Kd7 {[%clk 0:02:16]} 23. Bc1 {[%clk 0:01:52]}  c6 {[%clk 0:01:54]} 24. dxc6+ {[%clk 0:01:49]}  Kxc6 {[%clk 0:01:54]} 25. Re4 {[%clk 0:01:50]}  d5 {[%clk 0:01:50]} 26. Ra4 {[%clk 0:01:47]}  Rb7 {[%clk 0:01:50]} 27. h4 {[%clk 0:01:05]}  d4 {[%clk 0:01:50]} 28. c4 {[%clk 0:00:58]}  Bxh4+ {[%clk 0:01:50]} 29. Ke2 {[%clk 0:00:58]}  Re7+ {[%clk 0:01:34]} 30. Kd3 {[%clk 0:00:57]}  Be1 {[%clk 0:01:18]} 31. a3 {[%clk 0:00:46]}  a5 {[%clk 0:01:16]} 32. Bd2 {[%clk 0:00:39]}  Bxd2 {[%clk 0:01:12]} 33. Kxd2 {[%clk 0:00:40]}  Kb6 {[%clk 0:01:13]} 34. b4 {[%clk 0:00:40]}  axb4 {[%clk 0:01:08]} 35. axb4 {[%clk 0:00:41]}  cxb4 {[%clk 0:01:08]} 36. Rxb4+ {[%clk 0:00:42]}  Kc5 {[%clk 0:01:08]} 37. Ra4 {[%clk 0:00:39]}  Rb7 {[%clk 0:01:08]} 38. g4 {[%clk 0:00:34]}  Rb2+ {[%clk 0:01:05]} 39. Kd3 {[%clk 0:00:30]}  Rb3+ {[%clk 0:01:01]} 40. Ke4 {[%clk 0:00:30]}  Re3+ {[%clk 0:01:00]} 41. Kf4 {[%clk 0:00:31]}  Rc3 {[%clk 0:01:00]} 42. Ra7 {[%clk 0:00:29]}  d3 {[%clk 0:00:58]} 43. Ke3 {[%clk 0:00:28]}  d2+ {[%clk 0:00:51]} 44. Kxd2 {[%clk 0:00:27]}  Rxf3 {[%clk 0:00:52]} 45. Rc7+ {[%clk 0:00:22]}  Kd4 {[%clk 0:00:49]} 46. c5 {[%clk 0:00:22]}  Kd5 {[%clk 0:00:49]} 47. g5 {[%clk 0:00:19]}  Rf5 {[%clk 0:00:45]} 48. Ke3 {[%clk 0:00:19]}  Rxg5 {[%clk 0:00:44]} 49. Rxf7 {[%clk 0:00:18]}  Kxc5 {[%clk 0:00:44]} 50. Kf4 {[%clk 0:00:19]}  Rg6 {[%clk 0:00:44]} 51. Kf5 {[%clk 0:00:19]}  Kd6 {[%clk 0:00:43]} 52. Rf8 {[%clk 0:00:18]}  Rg1 {[%clk 0:00:39]} 53. Rh8 {[%clk 0:00:17]}  g6+ {[%clk 0:00:32]} 54. Kf4 {[%clk 0:00:14]}  h5 {[%clk 0:00:32]} 55. Ra8 {[%clk 0:00:12]}  Rg4+ {[%clk 0:00:30]} 56. Kf3 {[%clk 0:00:12]}  Ke6 {[%clk 0:00:31]} 57. Ra7 {[%clk 0:00:10]}  Kf5 {[%clk 0:00:30]} 58. Ra5+ {[%clk 0:00:10]}  Kf6 {[%clk 0:00:30]} 59. Ra6+ {[%clk 0:00:08]}  Kg5 {[%clk 0:00:31]} 60. Ra5+ {[%clk 0:00:09]}  Kh4 {[%clk 0:00:28]} 61. Ra1 {[%clk 0:00:07]}  Rg3+ {[%clk 0:00:28]} 62. Kf2 {[%clk 0:00:01]}  g5 {[%clk 0:00:28]} 0-1


[Site "https://www.chess.com"]

[Event "Titled Tuesday Blitz January 10 Early 2023"]
[White "Chos, Alexey"]
[Black "Bazarov, Konstantin"]
[WhiteFideId "14117762"]
[BlackFideId "4137000"]
[WhiteElo "2296"]
[BlackElo "2235"]
[Result "1-0"]
[Round "11"]
[TimeControl "180+2"]
[Date "2023.01.10"]
[WhiteClock "0:01:45"]
[BlackClock "0:00:22"]

1. Nf3 {[%clk 0:02:59]}  Nf6 {[%clk 0:02:58]} 2. c4 {[%clk 0:03:00]}  c6 {[%clk 0:02:58]} 3. g3 {[%clk 0:03:01]}  d5 {[%clk 0:02:58]} 4. Bg2 {[%clk 0:03:01]}  g6 {[%clk 0:02:58]} 5. O-O {[%clk 0:03:01]}  Bg7 {[%clk 0:02:59]} 6. d4 {[%clk 0:03:01]}  dxc4 {[%clk 0:02:57]} 7. a4 {[%clk 0:02:58]}  Na6 {[%clk 0:02:48]} 8. Na3 {[%clk 0:02:57]}  Be6 {[%clk 0:02:46]} 9. Ng5 {[%clk 0:02:57]}  Bd5 {[%clk 0:02:40]} 10. e4 {[%clk 0:02:56]}  h6 {[%clk 0:02:40]} 11. exd5 {[%clk 0:02:56]}  hxg5 {[%clk 0:02:40]} 12. dxc6 {[%clk 0:02:56]}  Nd5 {[%clk 0:02:35]} 13. cxb7 {[%clk 0:02:55]}  Rb8 {[%clk 0:02:35]} 14. Nxc4 {[%clk 0:02:50]}  Rxb7 {[%clk 0:02:31]} 15. Bxg5 {[%clk 0:02:51]}  O-O {[%clk 0:02:23]} 16. Be3 {[%clk 0:02:40]}  Rb4 {[%clk 0:02:19]} 17. Qc2 {[%clk 0:02:37]}  e6 {[%clk 0:02:17]} 18. Ne5 {[%clk 0:02:33]}  Nxe3 {[%clk 0:02:14]} 19. fxe3 {[%clk 0:02:32]}  Bxe5 {[%clk 0:02:15]} 20. dxe5 {[%clk 0:02:32]}  Qg5 {[%clk 0:02:15]} 21. Qc3 {[%clk 0:02:28]}  Rfb8 {[%clk 0:02:11]} 22. Rf4 {[%clk 0:02:01]}  Rxb2 {[%clk 0:02:08]} 23. Qa5 {[%clk 0:01:58]}  Rb1+ {[%clk 0:01:56]} 24. Rxb1 {[%clk 0:01:55]}  Rxb1+ {[%clk 0:01:55]} 25. Bf1 {[%clk 0:01:54]}  Nb8 {[%clk 0:00:43]} 26. Qc7 {[%clk 0:01:44]}  Na6 {[%clk 0:00:23]} 27. Qxf7+ {[%clk 0:01:44]}  Kh8 {[%clk 0:00:22]} 28. Qf8+ {[%clk 0:01:44]}  Kh7 {[%clk 0:00:22]} 29. Rf7# {[%clk 0:01:45]} 1-0


[Site "https://www.chess.com"]

[Event "Titled Tuesday Blitz January 10 Early 2023"]
[White "Marcziter, Dmitrii"]
[Black "Mayank Chakraborty"]
[WhiteFideId "13900765"]
[BlackFideId "25659766"]
[WhiteElo "2234"]
[BlackElo "2025"]
[Result "0-1"]
[Round "11"]
[TimeControl "180+2"]
[Date "2023.01.10"]
[WhiteClock "0:00:27"]
[BlackClock "0:00:38"]

1. e4 {[%clk 0:03:00]}  c5 {[%clk 0:03:00]} 2. Nc3 {[%clk 0:03:00]}  d6 {[%clk 0:02:59]} 3. f4 {[%clk 0:02:58]}  g6 {[%clk 0:02:59]} 4. Nf3 {[%clk 0:02:58]}  Bg7 {[%clk 0:02:58]} 5. Bc4 {[%clk 0:02:57]}  Nc6 {[%clk 0:02:57]} 6. d3 {[%clk 0:02:57]}  e6 {[%clk 0:02:49]} 7. O-O {[%clk 0:02:56]}  Nge7 {[%clk 0:02:50]} 8. f5 {[%clk 0:02:56]}  exf5 {[%clk 0:02:50]} 9. Ng5 {[%clk 0:02:54]}  Ne5 {[%clk 0:02:50]} 10. exf5 {[%clk 0:02:47]}  Bxf5 {[%clk 0:02:49]} 11. Nxf7 {[%clk 0:02:39]}  Nxf7 {[%clk 0:02:48]} 12. Bxf7+ {[%clk 0:02:39]}  Kxf7 {[%clk 0:02:49]} 13. g4 {[%clk 0:02:39]}  Bd4+ {[%clk 0:02:49]} 14. Kh1 {[%clk 0:02:38]}  Qd7 {[%clk 0:02:49]} 15. Bg5 {[%clk 0:02:31]}  Rhe8 {[%clk 0:02:39]} 16. Bxe7 {[%clk 0:02:28]}  Kxe7 {[%clk 0:02:31]} 17. gxf5 {[%clk 0:02:28]}  gxf5 {[%clk 0:02:31]} 18. Qf3 {[%clk 0:02:17]}  Rf8 {[%clk 0:02:29]} 19. Rae1+ {[%clk 0:02:11]}  Kd8 {[%clk 0:02:29]} 20. Nd5 {[%clk 0:02:07]}  Bxb2 {[%clk 0:02:20]} 21. Re7 {[%clk 0:02:01]}  Qc6 {[%clk 0:02:16]} 22. Rxh7 {[%clk 0:01:57]}  Be5 {[%clk 0:02:13]} 23. c4 {[%clk 0:01:51]}  Qe8 {[%clk 0:02:12]} 24. Rg1 {[%clk 0:01:36]}  Bd4 {[%clk 0:02:02]} 25. Rb1 {[%clk 0:01:04]}  Rf7 {[%clk 0:01:40]} 26. Rh6 {[%clk 0:00:58]}  Qe5 {[%clk 0:01:27]} 27. Nf4 {[%clk 0:00:51]}  Re7 {[%clk 0:00:58]} 28. Ng6 {[%clk 0:00:42]}  Qe3 {[%clk 0:00:52]} 29. Qd5 {[%clk 0:00:34]}  Qxd3 {[%clk 0:00:36]} 30. Qxd6+ {[%clk 0:00:32]}  Rd7 {[%clk 0:00:34]} 31. Qf8+ {[%clk 0:00:16]}  Kc7 {[%clk 0:00:31]} 32. Qxf5 {[%clk 0:00:13]}  Qxf5 {[%clk 0:00:11]} 33. Rxb7+ {[%clk 0:00:09]}  Kc8 {[%clk 0:00:08]} 34. Rh8+ {[%clk 0:00:09]}  Kxb7 {[%clk 0:00:07]} 35. Re8 {[%clk 0:00:08]}  Qe5 {[%clk 0:00:04]} 36. Rxe5 {[%clk 0:00:07]}  Bxe5 {[%clk 0:00:04]} 37. Nxe5 {[%clk 0:00:07]}  Rd1+ {[%clk 0:00:05]} 38. Kg2 {[%clk 0:00:07]}  Rd2+ {[%clk 0:00:06]} 39. Kf3 {[%clk 0:00:07]}  Rxa2 {[%clk 0:00:07]} 40. h4 {[%clk 0:00:07]}  Ra6 {[%clk 0:00:08]} 41. h5 {[%clk 0:00:08]}  Rf6+ {[%clk 0:00:08]} 42. Kg4 {[%clk 0:00:08]}  Rff8 {[%clk 0:00:09]} 43. Kg5 {[%clk 0:00:08]}  Rg8+ {[%clk 0:00:10]} 44. Ng6 {[%clk 0:00:09]}  Kc6 {[%clk 0:00:11]} 45. h6 {[%clk 0:00:09]}  Kd6 {[%clk 0:00:12]} 46. h7 {[%clk 0:00:10]}  Rxg6+ {[%clk 0:00:12]} 47. Kxg6 {[%clk 0:00:10]}  Rh8 {[%clk 0:00:13]} 48. Kg7 {[%clk 0:00:10]}  Rxh7+ {[%clk 0:00:14]} 49. Kxh7 {[%clk 0:00:11]}  a5 {[%clk 0:00:15]} 50. Kg6 {[%clk 0:00:11]}  Ke5 {[%clk 0:00:16]} 51. Kg5 {[%clk 0:00:11]}  Kd4 {[%clk 0:00:17]} 52. Kg4 {[%clk 0:00:12]}  a4 {[%clk 0:00:18]} 53. Kf4 {[%clk 0:00:13]}  Kxc4 {[%clk 0:00:18]} 54. Kf5 {[%clk 0:00:14]}  Kb3 {[%clk 0:00:19]} 55. Ke6 {[%clk 0:00:14]}  c4 {[%clk 0:00:20]} 56. Kd6 {[%clk 0:00:15]}  c3 {[%clk 0:00:21]} 57. Kc6 {[%clk 0:00:16]}  c2 {[%clk 0:00:22]} 58. Kd6 {[%clk 0:00:17]}  c1=Q {[%clk 0:00:22]} 59. Ke6 {[%clk 0:00:18]}  a3 {[%clk 0:00:23]} 60. Ke5 {[%clk 0:00:19]}  a2 {[%clk 0:00:24]} 61. Kf5 {[%clk 0:00:20]}  a1=N {[%clk 0:00:24]} 62. Kf6 {[%clk 0:00:21]}  Nc2 {[%clk 0:00:25]} 63. Kg6 {[%clk 0:00:22]}  Kc3 {[%clk 0:00:26]} 64. Kf7 {[%clk 0:00:19]}  Qe3 {[%clk 0:00:26]} 65. Kf6 {[%clk 0:00:19]}  Kd4 {[%clk 0:00:27]} 66. Kf5 {[%clk 0:00:20]}  Kd5 {[%clk 0:00:28]} 67. Kf6 {[%clk 0:00:20]}  Nd4 {[%clk 0:00:28]} 68. Kf7 {[%clk 0:00:21]}  Qe4 {[%clk 0:00:29]} 69. Kf8 {[%clk 0:00:22]}  Ke5 {[%clk 0:00:30]} 70. Kg7 {[%clk 0:00:22]}  Qg4+ {[%clk 0:00:31]} 71. Kf7 {[%clk 0:00:23]}  Qd7+ {[%clk 0:00:30]} 72. Kg6 {[%clk 0:00:23]}  Ne6 {[%clk 0:00:30]} 73. Kh5 {[%clk 0:00:22]}  Qh7+ {[%clk 0:00:30]} 74. Kg4 {[%clk 0:00:22]}  Qf5+ {[%clk 0:00:31]} 75. Kg3 {[%clk 0:00:22]}  Ke4 {[%clk 0:00:32]} 76. Kg2 {[%clk 0:00:23]}  Nc5 {[%clk 0:00:31]} 77. Kg3 {[%clk 0:00:23]}  Na6 {[%clk 0:00:31]} 78. Kg2 {[%clk 0:00:23]}  Nb8 {[%clk 0:00:32]} 79. Kg3 {[%clk 0:00:24]}  Nd7 {[%clk 0:00:33]} 80. Kg2 {[%clk 0:00:25]}  Nb6 {[%clk 0:00:34]} 81. Kg3 {[%clk 0:00:26]}  Qg5+ {[%clk 0:00:35]} 82. Kh3 {[%clk 0:00:26]}  Kf3 {[%clk 0:00:36]} 83. Kh2 {[%clk 0:00:27]}  Kf2 {[%clk 0:00:36]} 84. Kh3 {[%clk 0:00:27]}  Na4 {[%clk 0:00:37]} 85. Kh2 {[%clk 0:00:27]}  Qh6# {[%clk 0:00:38]} 0-1


[Site "https://www.chess.com"]

[Event "Titled Tuesday Blitz January 10 Early 2023"]
[White "Nguyen Hong Nhung"]
[Black "Makhmudov, Shukhrat"]
[WhiteFideId "12412201"]
[BlackFideId "14200775"]
[WhiteElo "2003"]
[BlackElo "2115"]
[Result "1-0"]
[Round "11"]
[TimeControl "180+2"]
[Date "2023.01.10"]
[WhiteClock "0:00:11"]
[BlackClock "0:00:17"]

1. e4 {[%clk 0:03:00]}  e5 {[%clk 0:02:59]} 2. Nf3 {[%clk 0:03:00]}  Nc6 {[%clk 0:02:58]} 3. d4 {[%clk 0:03:01]}  exd4 {[%clk 0:02:58]} 4. Nxd4 {[%clk 0:03:02]}  Nf6 {[%clk 0:02:58]} 5. Nc3 {[%clk 0:03:01]}  Bb4 {[%clk 0:02:58]} 6. Nxc6 {[%clk 0:03:02]}  bxc6 {[%clk 0:02:58]} 7. Bd3 {[%clk 0:03:03]}  d5 {[%clk 0:02:59]} 8. exd5 {[%clk 0:03:03]}  cxd5 {[%clk 0:02:59]} 9. O-O {[%clk 0:03:03]}  O-O {[%clk 0:03:00]} 10. Bg5 {[%clk 0:03:03]}  c6 {[%clk 0:03:00]} 11. Qf3 {[%clk 0:03:02]}  Bd6 {[%clk 0:03:00]} 12. h3 {[%clk 0:03:02]}  Rb8 {[%clk 0:03:00]} 13. Rab1 {[%clk 0:02:53]}  Be5 {[%clk 0:02:54]} 14. Rfe1 {[%clk 0:02:41]}  Re8 {[%clk 0:02:53]} 15. Na4 {[%clk 0:02:14]}  h6 {[%clk 0:02:44]} 16. Bf4 {[%clk 0:02:07]}  Qd6 {[%clk 0:02:33]} 17. Bxe5 {[%clk 0:01:57]}  Rxe5 {[%clk 0:02:32]} 18. b3 {[%clk 0:01:48]}  Bd7 {[%clk 0:02:14]} 19. Nc3 {[%clk 0:01:36]}  Rbe8 {[%clk 0:02:04]} 20. Rxe5 {[%clk 0:01:35]}  Rxe5 {[%clk 0:01:56]} 21. Rd1 {[%clk 0:01:35]}  c5 {[%clk 0:01:49]} 22. a4 {[%clk 0:01:24]}  a6 {[%clk 0:01:45]} 23. Bc4 {[%clk 0:01:15]}  Bc6 {[%clk 0:01:36]} 24. Bxa6 {[%clk 0:00:52]}  d4 {[%clk 0:01:30]} 25. Qd3 {[%clk 0:00:37]}  Qe7 {[%clk 0:01:08]} 26. Ne2 {[%clk 0:00:31]}  Be4 {[%clk 0:01:02]} 27. Qd2 {[%clk 0:00:25]}  Rg5 {[%clk 0:00:57]} 28. Ng3 {[%clk 0:00:24]}  Qd6 {[%clk 0:00:49]} 29. Nxe4 {[%clk 0:00:20]}  Nxe4 {[%clk 0:00:48]} 30. Qe2 {[%clk 0:00:19]}  Nc3 {[%clk 0:00:45]} 31. Qe8+ {[%clk 0:00:19]}  Kh7 {[%clk 0:00:44]} 32. Bd3+ {[%clk 0:00:19]}  g6 {[%clk 0:00:44]} 33. Qxf7+ {[%clk 0:00:19]}  Kh8 {[%clk 0:00:44]} 34. Re1 {[%clk 0:00:20]}  Re5 {[%clk 0:00:43]} 35. Rxe5 {[%clk 0:00:18]}  Qxe5 {[%clk 0:00:43]} 36. Bxg6 {[%clk 0:00:15]}  Qg7 {[%clk 0:00:35]} 37. Qe8+ {[%clk 0:00:14]}  Qg8 {[%clk 0:00:35]} 38. Qe5+ {[%clk 0:00:14]}  Qg7 {[%clk 0:00:35]} 39. Qe6 {[%clk 0:00:12]}  Qf8 {[%clk 0:00:30]} 40. Bd3 {[%clk 0:00:12]}  Nd1 {[%clk 0:00:27]} 41. Qe5+ {[%clk 0:00:11]}  Kg8 {[%clk 0:00:23]} 42. Bc4+ {[%clk 0:00:10]}  Kh7 {[%clk 0:00:23]} 43. Qe4+ {[%clk 0:00:10]}  Kh8 {[%clk 0:00:24]} 44. Qh4 {[%clk 0:00:09]}  Kh7 {[%clk 0:00:19]} 45. a5 {[%clk 0:00:09]}  Nc3 {[%clk 0:00:18]} 46. Bd3+ {[%clk 0:00:09]}  Kh8 {[%clk 0:00:18]} 47. a6 {[%clk 0:00:10]}  Nd5 {[%clk 0:00:17]} 48. a7 {[%clk 0:00:10]}  Nf4 {[%clk 0:00:17]} 49. Qxf4 {[%clk 0:00:09]}  Qxf4 {[%clk 0:00:17]} 50. a8=Q+ {[%clk 0:00:10]}  Kg7 {[%clk 0:00:17]} 51. Qb7+ {[%clk 0:00:10]}  Kf6 {[%clk 0:00:18]} 52. Qe4 {[%clk 0:00:11]}  Qc1+ {[%clk 0:00:17]} 53. Kh2 {[%clk 0:00:11]} 1-0


[Site "https://www.chess.com"]

[Event "Titled Tuesday Blitz January 10 Early 2023"]
[White "Kaplan, Avi Harrison"]
[Black "Aspire_ie"]
[WhiteFideId "30934559"]
[WhiteElo "2146"]
[BlackElo "2307"]
[Result "0-1"]
[Round "11"]
[TimeControl "180+2"]
[Date "2023.01.10"]
[WhiteClock "0:00:07"]
[BlackClock "0:00:28"]

1. d4 {[%clk 0:03:00]}  d6 {[%clk 0:02:59]} 2. c4 {[%clk 0:02:59]}  e5 {[%clk 0:02:59]} 3. Nc3 {[%clk 0:03:00]}  exd4 {[%clk 0:02:58]} 4. Qxd4 {[%clk 0:02:58]}  Nc6 {[%clk 0:02:59]} 5. Qd2 {[%clk 0:02:58]}  Nf6 {[%clk 0:02:58]} 6. b3 {[%clk 0:02:58]}  a5 {[%clk 0:02:58]} 7. Bb2 {[%clk 0:02:58]}  a4 {[%clk 0:02:58]} 8. Nxa4 {[%clk 0:02:56]}  d5 {[%clk 0:02:59]} 9. e3 {[%clk 0:02:44]}  Rxa4 {[%clk 0:02:52]} 10. bxa4 {[%clk 0:02:30]}  Bb4 {[%clk 0:02:51]} 11. Bc3 {[%clk 0:02:30]}  Ne4 {[%clk 0:02:51]} 12. Bxb4 {[%clk 0:02:30]}  Nxd2 {[%clk 0:02:51]} 13. Bxd2 {[%clk 0:02:31]}  d4 {[%clk 0:02:50]} 14. Nf3 {[%clk 0:02:22]}  O-O {[%clk 0:02:46]} 15. Be2 {[%clk 0:02:18]}  d3 {[%clk 0:02:46]} 16. Bd1 {[%clk 0:02:17]}  Be6 {[%clk 0:02:45]} 17. Rc1 {[%clk 0:02:13]}  Qf6 {[%clk 0:02:17]} 18. O-O {[%clk 0:02:10]}  Qg6 {[%clk 0:02:06]} 19. Kh1 {[%clk 0:01:53]}  Rd8 {[%clk 0:02:01]} 20. Bb3 {[%clk 0:01:49]}  h6 {[%clk 0:01:52]} 21. Rfd1 {[%clk 0:01:43]}  Bg4 {[%clk 0:01:51]} 22. Bc3 {[%clk 0:01:32]}  Qh5 {[%clk 0:01:44]} 23. Rg1 {[%clk 0:01:06]}  Bxf3 {[%clk 0:01:42]} 24. gxf3 {[%clk 0:01:07]}  Qxf3+ {[%clk 0:01:42]} 25. Rg2 {[%clk 0:01:07]}  Rd6 {[%clk 0:01:24]} 26. Bd1 {[%clk 0:01:02]}  Qe4 {[%clk 0:01:09]} 27. Bd2 {[%clk 0:00:22]}  Ne5 {[%clk 0:01:00]} 28. Kg1 {[%clk 0:00:12]}  Nxc4 {[%clk 0:00:36]} 29. Rg4 {[%clk 0:00:02]}  Rg6 {[%clk 0:00:30]} 30. h3 {[%clk 0:00:01]}  Rxg4+ {[%clk 0:00:29]} 31. hxg4 {[%clk 0:00:02]}  Nxd2 {[%clk 0:00:28]} 32. Rxc7 {[%clk 0:00:03]}  Nf3+ {[%clk 0:00:27]} 33. Kf1 {[%clk 0:00:04]}  Qxg4 {[%clk 0:00:25]} 34. Bxf3 {[%clk 0:00:03]}  Qxf3 {[%clk 0:00:26]} 35. Rd7 {[%clk 0:00:03]}  Qe2+ {[%clk 0:00:26]} 36. Kg2 {[%clk 0:00:03]}  Qg4+ {[%clk 0:00:25]} 37. Kf1 {[%clk 0:00:03]}  Qxd7 {[%clk 0:00:26]} 38. Ke1 {[%clk 0:00:04]}  d2+ {[%clk 0:00:27]} 39. Kd1 {[%clk 0:00:04]}  Qd3 {[%clk 0:00:26]} 40. a5 {[%clk 0:00:05]}  h5 {[%clk 0:00:25]} 41. a6 {[%clk 0:00:05]}  bxa6 {[%clk 0:00:26]} 42. a4 {[%clk 0:00:05]}  h4 {[%clk 0:00:27]} 43. e4 {[%clk 0:00:06]}  h3 {[%clk 0:00:27]} 44. e5 {[%clk 0:00:07]}  h2 {[%clk 0:00:27]} 45. e6 {[%clk 0:00:07]}  h1=Q# {[%clk 0:00:28]} 0-1


[Site "https://www.chess.com"]

[Event "Titled Tuesday Blitz January 10 Early 2023"]
[White "Guimaraes, Wagner Peixoto"]
[Black "Avazkhonov, Alikhon"]
[WhiteFideId "2100940"]
[BlackFideId "14208504"]
[WhiteElo "2194"]
[BlackElo "1538"]
[Result "0-1"]
[Round "11"]
[TimeControl "180+2"]
[Date "2023.01.10"]
[WhiteClock "0:01:03"]
[BlackClock "0:01:39"]

1. e4 {[%clk 0:02:58]}  c5 {[%clk 0:02:58]} 2. Nf3 {[%clk 0:02:58]}  d6 {[%clk 0:02:58]} 3. d4 {[%clk 0:02:57]}  cxd4 {[%clk 0:02:59]} 4. Nxd4 {[%clk 0:02:57]}  Nf6 {[%clk 0:03:00]} 5. Nc3 {[%clk 0:02:58]}  a6 {[%clk 0:03:00]} 6. Bg5 {[%clk 0:02:57]}  e6 {[%clk 0:03:00]} 7. f4 {[%clk 0:02:58]}  h6 {[%clk 0:02:58]} 8. Bxf6 {[%clk 0:02:55]}  Qxf6 {[%clk 0:02:59]} 9. f5 {[%clk 0:02:51]}  Nc6 {[%clk 0:02:36]} 10. Nxc6 {[%clk 0:02:47]}  bxc6 {[%clk 0:02:37]} 11. fxe6 {[%clk 0:02:36]}  Bxe6 {[%clk 0:02:34]} 12. Qf3 {[%clk 0:02:29]}  Qxf3 {[%clk 0:02:27]} 13. gxf3 {[%clk 0:02:30]}  Be7 {[%clk 0:02:25]} 14. O-O-O {[%clk 0:02:26]}  O-O {[%clk 0:02:24]} 15. h4 {[%clk 0:02:18]}  f5 {[%clk 0:02:21]} 16. Bh3 {[%clk 0:02:17]}  Rab8 {[%clk 0:02:10]} 17. h5 {[%clk 0:01:59]}  Bg5+ {[%clk 0:02:05]} 18. Kb1 {[%clk 0:01:58]}  Bf6 {[%clk 0:02:05]} 19. Na4 {[%clk 0:01:23]}  Be5 {[%clk 0:01:57]} 20. b3 {[%clk 0:01:10]}  Rf6 {[%clk 0:01:44]} 21. Rhf1 {[%clk 0:01:04]}  fxe4 {[%clk 0:01:40]} 22. fxe4 {[%clk 0:01:03]}  Bxh3 {[%clk 0:01:39]} 0-1


[Site "https://www.chess.com"]

[Event "Titled Tuesday Blitz January 10 Early 2023"]
[White "Gracia Alvarez, Gerardo Antonio"]
[Black "Sovetbekova, Nurai"]
[WhiteFideId "5109124"]
[BlackFideId "13801910"]
[WhiteElo "2238"]
[BlackElo "1764"]
[Result "1/2-1/2"]
[Round "11"]
[TimeControl "180+2"]
[Date "2023.01.10"]
[WhiteClock "0:00:04"]
[BlackClock "0:00:18"]

1. d4 {[%clk 0:03:00]}  Nf6 {[%clk 0:02:58]} 2. Bf4 {[%clk 0:03:00]}  g6 {[%clk 0:02:58]} 3. Nf3 {[%clk 0:02:58]}  Bg7 {[%clk 0:02:58]} 4. c3 {[%clk 0:02:59]}  O-O {[%clk 0:02:58]} 5. Nbd2 {[%clk 0:03:00]}  d6 {[%clk 0:02:56]} 6. e4 {[%clk 0:02:58]}  c5 {[%clk 0:02:56]} 7. dxc5 {[%clk 0:02:53]}  dxc5 {[%clk 0:02:56]} 8. h3 {[%clk 0:02:54]}  Nc6 {[%clk 0:02:54]} 9. Be2 {[%clk 0:02:53]}  Qb6 {[%clk 0:02:53]} 10. Nc4 {[%clk 0:02:50]}  Qd8 {[%clk 0:02:49]} 11. Qc2 {[%clk 0:02:46]}  Be6 {[%clk 0:02:47]} 12. a4 {[%clk 0:02:43]}  Qc8 {[%clk 0:02:32]} 13. O-O {[%clk 0:02:37]}  a6 {[%clk 0:02:31]} 14. Nb6 {[%clk 0:02:35]}  Qd8 {[%clk 0:02:30]} 15. Nxa8 {[%clk 0:02:34]}  Qxa8 {[%clk 0:02:31]} 16. Rfd1 {[%clk 0:02:26]}  Qc8 {[%clk 0:02:28]} 17. Ng5 {[%clk 0:02:22]}  c4 {[%clk 0:02:22]} 18. Nxe6 {[%clk 0:02:19]}  Qxe6 {[%clk 0:02:23]} 19. Bf3 {[%clk 0:02:16]}  Na5 {[%clk 0:02:21]} 20. e5 {[%clk 0:02:13]}  Nd7 {[%clk 0:02:17]} 21. Bd5 {[%clk 0:02:12]}  Qb6 {[%clk 0:02:12]} 22. Be3 {[%clk 0:02:08]}  Nc5 {[%clk 0:02:00]} 23. e6 {[%clk 0:01:59]}  fxe6 {[%clk 0:01:56]} 24. Bxc5 {[%clk 0:01:39]}  Qxc5 {[%clk 0:01:57]} 25. Bxe6+ {[%clk 0:01:39]}  Kh8 {[%clk 0:01:57]} 26. Rf1 {[%clk 0:01:28]}  Nb3 {[%clk 0:01:51]} 27. Rad1 {[%clk 0:01:27]}  Be5 {[%clk 0:01:42]} 28. Qe4 {[%clk 0:01:20]}  Bg3 {[%clk 0:01:25]} 29. Qxc4 {[%clk 0:00:54]}  Bxf2+ {[%clk 0:01:21]} 30. Kh1 {[%clk 0:00:54]}  Qxc4 {[%clk 0:01:13]} 31. Bxc4 {[%clk 0:00:55]}  Nc5 {[%clk 0:01:12]} 32. g4 {[%clk 0:00:49]}  Rf6 {[%clk 0:00:57]} 33. Kg2 {[%clk 0:00:44]}  Bh4 {[%clk 0:00:56]} 34. Rd8+ {[%clk 0:00:40]}  Kg7 {[%clk 0:00:55]} 35. Rg8+ {[%clk 0:00:34]}  Kh6 {[%clk 0:00:54]} 36. Rxf6 {[%clk 0:00:34]}  Bxf6 {[%clk 0:00:53]} 37. Rc8 {[%clk 0:00:31]}  Nxa4 {[%clk 0:00:53]} 38. Bd5 {[%clk 0:00:23]}  Nxb2 {[%clk 0:00:50]} 39. Bxb7 {[%clk 0:00:18]}  a5 {[%clk 0:00:49]} 40. Bd5 {[%clk 0:00:17]}  a4 {[%clk 0:00:47]} 41. c4 {[%clk 0:00:16]}  a3 {[%clk 0:00:44]} 42. c5 {[%clk 0:00:16]}  Nd3 {[%clk 0:00:38]} 43. c6 {[%clk 0:00:15]}  Nf4+ {[%clk 0:00:37]} 44. Kf3 {[%clk 0:00:15]}  Nxd5 {[%clk 0:00:38]} 45. Ra8 {[%clk 0:00:14]}  Bb2 {[%clk 0:00:28]} 46. Ke4 {[%clk 0:00:14]}  Nb6 {[%clk 0:00:27]} 47. Ra6 {[%clk 0:00:13]}  Nc8 {[%clk 0:00:27]} 48. h4 {[%clk 0:00:06]}  Kg7 {[%clk 0:00:27]} 49. Kd5 {[%clk 0:00:06]}  Kf7 {[%clk 0:00:27]} 50. Kc5 {[%clk 0:00:05]}  Nd6 {[%clk 0:00:26]} 51. c7 {[%clk 0:00:04]}  Ke6 {[%clk 0:00:25]} 52. Kc6 {[%clk 0:00:03]}  Bc1 {[%clk 0:00:20]} 53. Ra4 {[%clk 0:00:03]}  Bb2 {[%clk 0:00:20]} 54. Ra8 {[%clk 0:00:03]}  h6 {[%clk 0:00:18]} 55. Ra4 {[%clk 0:00:03]}  Kf7 {[%clk 0:00:18]} 56. Kd7 {[%clk 0:00:03]}  Kf6 {[%clk 0:00:18]} 57. Ra6 {[%clk 0:00:02]}  Ke5 {[%clk 0:00:15]} 58. Rxd6 {[%clk 0:00:02]}  exd6 {[%clk 0:00:15]} 59. c8=Q {[%clk 0:00:02]}  a2 {[%clk 0:00:16]} 60. Qe8+ {[%clk 0:00:02]}  Kd5 {[%clk 0:00:16]} 61. Qe6+ {[%clk 0:00:03]}  Kc5 {[%clk 0:00:16]} 62. Qxd6+ {[%clk 0:00:03]}  Kc4 {[%clk 0:00:17]} 63. Qc6+ {[%clk 0:00:03]}  Kb3 {[%clk 0:00:17]} 64. Qb5+ {[%clk 0:00:03]}  Ka3 {[%clk 0:00:17]} 65. Qa5+ {[%clk 0:00:03]}  Kb3 {[%clk 0:00:17]} 66. Qb5+ {[%clk 0:00:04]}  Ka3 {[%clk 0:00:18]} 67. Qa5+ {[%clk 0:00:04]}  Kb3 {[%clk 0:00:18]} 68. Qb5+ {[%clk 0:00:04]} 1/2-1/2


[Site "https://www.chess.com"]